fUST/lending_fUST_20240715
["ID","MTS","AMOUNT","RATE_DAILY","PERIOD"]
[332140681,1720986645616,-500.0,0.00025205,2]
[332140682,1720986645627,-500.0,0.00025205,2]
[332140683,1720986645636,-500.0,0.00025205,2]
[332140684,1720986645645,-500.0,0.00025205,2]
[332140685,1720986645655,-500.0,0.00025205,2]
[332140686,1720986645664,-500.0,0.00025205,2]
[332140687,1720986645673,-500.0,0.00025205,2]
[332140688,1720986645682,-500.0,0.00025205,2]
[332140689,1720986645691,-500.0,0.00025205,2]
[332140690,1720986645700,-500.0,0.00025205,3]
[332140691,1720986645710,-3756.31,0.00025205,2]
[332140692,1720986645719,-747.19,0.00025205,2]
[332140693,1720986645728,-500.0,0.00025205,2]
[332140694,1720986645738,-541.28,0.00025205,2]
[332140695,1720986645747,-500.0,0.00025205,2]
[332140696,1720986645756,-500.0,0.00025205,2]
[332140697,1720986645765,-500.0,0.00025205,2]
[332140698,1720986645774,-539.87484177,0.00025205,2]
[332140699,1720986645783,-500.0,0.00025205,2]
[332140700,1720986645792,-151.0,0.00025205,7]
[332140701,1720986645801,-151.0,0.00025205,7]
[332140702,1720986645810,-378.13205234,0.00025205,2]
[332140703,1720986645819,-500.0,0.00025205,2]
[332140704,1720986645828,-151.0,0.00025205,2]
[332140705,1720986645837,-871.2,0.00025205,2]
[332140706,1720986645847,-500.0,0.00025205,2]
[332140707,1720986645857,-152.56,0.00025205,2]
[332140708,1720986645866,-500.0,0.00025205,2]
[332140709,1720986645876,-500.0,0.00025205,2]
[332140710,1720986645885,-500.0,0.00025205,2]
[332140711,1720986645894,-151.0,0.00025205,7]
[332140712,1720986645904,-151.0,0.00025205,7]
[332140713,1720986645913,-151.0,0.00025205,7]
[332140714,1720986645923,-105.51462159,0.00025205,2]
[332140720,1720986646735,-1111.84051741,0.00024457,2]
[332140721,1720986646744,-500.0,0.00024657,2]
[332140722,1720986646754,-500.0,0.00024657,2]
[332140723,1720986646763,-500.0,0.00024657,2]
[332140724,1720986646772,-500.0,0.00024657,2]
[332140725,1720986646782,-500.0,0.00024931,2]
[332140726,1720986646791,-394.48537841,0.00025205,2]
[332140727,1720986646800,-500.0,0.00025205,2]
[332140728,1720986646810,-500.0,0.00025205,2]
[332140729,1720986646819,-500.0,0.00025205,2]
[332140730,1720986646897,-500.0,0.00025205,2]
[332140731,1720986646907,-500.0,0.00025205,2]
[332140732,1720986646916,-503.81660779,0.00025205,2]
[332140733,1720986646927,-500.0,0.00025205,2]
[332140734,1720986646939,-220.48,0.00025205,2]
[332140735,1720986646950,-500.0,0.00025205,2]
[332140736,1720986646960,-500.0,0.00025205,2]
[332140737,1720986646969,-317.200265,0.00025205,7]
[332140738,1720986646980,-547.57,0.00025205,2]
[332140739,1720986646990,-317.200265,0.00025205,7]
[332140740,1720986646999,-500.0,0.00025205,2]
[332140741,1720986647010,-569.58498182,0.00025205,2]
[332140742,1720986647019,-500.0,0.00025205,2]
[332140743,1720986647029,-179.040719,0.00025205,7]
[332140744,1720986647038,-6682.01,0.00025205,2]
[332140745,1720986647047,-179.040719,0.00025205,7]
[332140746,1720986647056,-500.0,0.00025205,2]
[332140747,1720986647066,-576.71,0.00025205,2]
[332140748,1720986647075,-309.18495205,0.00025205,2]
[332140749,1720986647085,-500.0,0.00025205,2]
[332140750,1720986647094,-169.45,0.00025205,2]
[332140751,1720986647103,-1364.64,0.00025205,2]
[332140752,1720986647112,-500.0,0.00025205,2]
[332140753,1720986647123,-500.0,0.00025205,2]
[332140754,1720986647133,-500.0,0.00025205,2]
[332140755,1720986647143,-500.0,0.00025205,2]
[332140756,1720986647153,-500.0,0.00025205,2]
[332140757,1720986647163,-500.0,0.00025205,2]
[332140758,1720986647172,-615.63,0.00025205,2]
[332140759,1720986647181,-500.0,0.00025205,2]
[332140760,1720986647190,-500.0,0.00025205,2]
[332140761,1720986647199,-500.0,0.00025205,2]
[332140762,1720986647209,-967.02000029,0.00025269,2]
[332140763,1720986647218,-150.112233,0.000253,5]
[332140764,1720986647227,-189.4315508,0.00025343,2]
[332140765,1720986647237,-185.4,0.0002538,2]
[332140766,1720986647246,-150.0,0.00025385,2]
[332140767,1720986647255,-559.505,0.00025385,2]
[332140768,1720986647264,-1407.0,0.00025385,2]
[332140769,1720986647275,-405.0,0.000254,2]
[332140770,1720986647286,-150.112233,0.000254,6]
[332140771,1720986647299,-150.112233,0.000254,7]
[332140772,1720986647308,-1274.77058136,0.000254,2]
[332140773,1720986647317,-153.0,0.00025425,2]
[332140774,1720986647326,-153.0,0.00025425,2]
[332140775,1720986647336,-153.0,0.00025425,2]
[332140776,1720986647346,-967.02000029,0.00025438,2]
[332140777,1720986647356,-20835.62,0.00025469,3]
[332140778,1720986647366,-500.0,0.00025478,2]
[332140779,1720986647375,-319.56,0.00025479,2]
[332140780,1720986647384,-287.558,0.00025479,2]
[332140781,1720986647393,-666.96,0.00025479,4]
[332140782,1720986647405,-500.0,0.00025479,2]
[332140783,1720986647417,-500.0,0.00025479,2]
[332140784,1720986647427,-500.0,0.00025479,2]
[332140785,1720986647438,-500.0,0.00025479,2]
[332140786,1720986647449,-500.0,0.00025479,2]
[332140787,1720986647461,-500.0,0.00025479,2]
[332140788,1720986647470,-506.92586096,0.00025479,2]
[332140789,1720986647481,-500.0,0.00025479,2]
[332140790,1720986647490,-500.0,0.00025479,2]
[332140791,1720986647499,-500.0,0.00025479,2]
[332140792,1720986647508,-500.0,0.00025479,2]
[332140793,1720986647518,-500.0,0.00025479,2]
[332140794,1720986647528,-500.0,0.00025479,2]
[332140795,1720986647537,-520.83755892,0.00025479,2]
[332140796,1720986647546,-637.69,0.00025479,2]
[332140797,1720986647555,-187.61393697,0.00025479,2]
[332140798,1720986647564,-500.0,0.00025479,2]
[332140799,1720986647573,-619.09,0.00025479,2]
[332140800,1720986647583,-500.0,0.00025479,2]
[332140801,1720986647592,-500.0,0.00025479,2]
[332140802,1720986647601,-747.19,0.00025479,2]
[332140803,1720986647610,-500.0,0.00025479,2]
[332140804,1720986647619,-500.0,0.00025479,2]
[332140805,1720986647629,-500.0,0.00025479,2]
[332140806,1720986647638,-386.91,0.00025479,2]
[332140807,1720986647647,-500.0,0.00025479,2]
[332140808,1720986647657,-871.2,0.00025479,2]
[332140809,1720986647667,-500.0,0.00025479,2]
[332140810,1720986647676,-500.0,0.00025479,2]
[332140811,1720986647685,-561.46,0.00025479,2]
[332140812,1720986647695,-500.0,0.00025479,2]
[332140813,1720986647704,-500.0,0.00025479,2]
[332140814,1720986647714,-536.06,0.00025479,2]
[332140815,1720986647723,-500.0,0.00025479,2]
[332140816,1720986647732,-422.42721991,0.00025479,2]
[332140817,1720986647743,-547.57,0.00025479,2]
[332140818,1720986647754,-500.0,0.00025479,2]
[332140819,1720986647763,-6682.01,0.00025479,2]
[332140820,1720986647773,-500.0,0.00025479,2]
[332140821,1720986647784,-151.0,0.00025479,7]
[332140822,1720986647796,-500.0,0.00025479,2]
[332140823,1720986647807,-1364.64,0.00025479,2]
[332140824,1720986647818,-170.736744,0.00025479,7]
[332140825,1720986647832,-545.71,0.00025479,2]
[332140826,1720986647841,-170.736744,0.00025479,7]
[332140827,1720986647851,-500.0,0.00025479,2]
[332140828,1720986647860,-345.705438,0.00025479,7]
[332140829,1720986647869,-345.705438,0.00025479,7]
[332140830,1720986647878,-500.0,0.00025479,2]
[332140831,1720986647887,-500.0,0.00025479,2]
[332140832,1720986647896,-500.0,0.00025479,2]
[332140833,1720986647905,-500.0,0.00025479,2]
[332140834,1720986647915,-615.63,0.00025479,2]
[332140835,1720986647923,-500.0,0.00025479,2]
[332140836,1720986647934,-196.824,0.00025479,7]
[332140837,1720986647944,-500.0,0.00025479,2]
[332140838,1720986647954,-2861.26059625,0.00025479,3]
[332140839,1720986647964,-1625.92906421,0.00025489,2]
[332140840,1720986647973,-500.0,0.00025489,2]
[332140841,1720986647982,-20028.8241737,0.0002549,3]
[332140842,1720986647991,-391.4819,0.00025491,7]
[332140843,1720986648000,-391.4819,0.00025491,7]
[332140844,1720986648011,-151.0,0.00025491,7]
[332140845,1720986648021,-151.0,0.00025491,7]
[332140846,1720986648031,-4012.92464091,0.00025496,2]
[332140847,1720986648042,-500.0,0.00025499,2]
[332140848,1720986648053,-500.0,0.00025499,2]
[332140849,1720986648064,-500.0,0.00025499,2]
[332140850,1720986648075,-186.64250523,0.00025499,2]
[332140851,1720986648085,-3597.99215311,0.000255,5]
[332140852,1720986648095,-28918.15239658,0.000255,2]
[332140863,1720987625107,-250.0,0.00016254,2]
[332140864,1720987629110,-50.0,0.00016254,2]
[332140865,1720987629132,-930.54481249,0.00016255,2]
[332140866,1720987630143,-19509.76834991,0.00016255,2]
[332140867,1720987631183,-224.81687217,0.00016255,2]
[332140868,1720987646091,-563.13830968,0.00016255,2]
[332140869,1720987654106,-688.46747319,0.00016255,2]
[332140870,1720987757093,-201.12793602,0.00016255,2]
[332140871,1720987758088,-157.25454264,0.00016255,2]
[332140872,1720987761100,-250.0,0.00016255,2]
[332140874,1720987806412,-300.0,0.00016254,2]
[332140875,1720987806447,-391.69348729,0.00016255,2]
[332140876,1720987806484,-470.90358808,0.00016255,2]
[332140877,1720987806552,-691.69348729,0.00016255,2]
[332140887,1720987832005,-299.6755,0.00016255,2]
[332140938,1720987837837,-904.65087926,0.00016255,2]
[332140940,1720987837848,-11077.25610598,0.00016255,2]
[332140942,1720987837858,-420.0,0.00017879,2]
[332140944,1720987837868,-191.95460898,0.00018899,2]
[332140946,1720987837878,-207.53877032,0.000189,2]
[332140948,1720987837891,-587.0,0.00019667,2]
[332140950,1720987837902,-678.637087,0.00021096,2]
[332140953,1720987837913,-823.0,0.00021634,2]
[332140955,1720987837925,-1025.075631,0.00021791,2]
[332140957,1720987837937,-1916.6378372,0.00021872,2]
[332140959,1720987837948,-244.891646,0.00022101,2]
[332140962,1720987837959,-167.350383,0.00022496,2]
[332140964,1720987837968,-167.350383,0.00022626,2]
[332140967,1720987837983,-174.273238,0.00022663,2]
[332140970,1720987837994,-167.350383,0.00022756,2]
[332140973,1720987838004,-167.350383,0.00022886,2]
[332140976,1720987838013,-167.350383,0.00023017,2]
[332140979,1720987838023,-167.350383,0.00023147,2]
[332140982,1720987838034,-167.350383,0.00023277,2]
[332140986,1720987838044,-167.350383,0.00023407,2]
[332140988,1720987838054,-167.350383,0.00023538,2]
[332140991,1720987838065,-167.350383,0.00023668,2]
[332140993,1720987838074,-1152.0,0.00023797,2]
[332140995,1720987838086,-207.53877032,0.000239,2]
[332140997,1720987838096,-1407.0,0.00024534,2]
[332140999,1720987838106,-3802.5280453,0.00024647,3]
[332141001,1720987838115,-199.20489448,0.00024656,2]
[332141003,1720987838126,-225.36018337,0.00024656,2]
[332141005,1720987838136,-500.0,0.00024656,2]
[332141007,1720987838145,-506.50899771,0.00024657,2]
[332141009,1720987838154,-500.0,0.00024657,2]
[332141011,1720987838164,-500.0,0.00024657,2]
[332141013,1720987838173,-500.0,0.00024657,2]
[332141015,1720987838183,-500.0,0.00024657,2]
[332141017,1720987838192,-500.0,0.00024657,2]
[332141019,1720987838203,-500.0,0.00024657,2]
[332141021,1720987838212,-500.0,0.00024657,2]
[332141023,1720987838221,-500.0,0.00024657,2]
[332141025,1720987838230,-500.0,0.00024657,2]
[332141027,1720987838239,-500.0,0.00024657,2]
[332141029,1720987838251,-500.0,0.00024657,2]
[332141031,1720987838260,-244.14382112,0.00024657,2]
[332141033,1720987838269,-500.0,0.00024657,2]
[332141036,1720987838279,-500.0,0.00024657,2]
[332141038,1720987838289,-500.0,0.00024657,2]
[332141039,1720987838298,-500.0,0.00024657,2]
[332141041,1720987838307,-500.0,0.00024657,2]
[332141043,1720987838316,-500.0,0.00024657,2]
[332141045,1720987838326,-357.96400942,0.00024657,2]
[332141047,1720987838336,-500.0,0.00024657,2]
[332141049,1720987838346,-500.0,0.00024657,2]
[332141051,1720987838355,-509.73621863,0.00024657,2]
[332141053,1720987838365,-500.0,0.00024657,2]
[332141055,1720987838374,-500.0,0.00024657,2]
[332141057,1720987838383,-500.0,0.00024657,2]
[332141059,1720987838393,-500.0,0.00024657,2]
[332141061,1720987838402,-500.0,0.00024657,2]
[332141063,1720987838411,-500.0,0.00024657,2]
[332141065,1720987838420,-500.0,0.00024657,2]
[332141067,1720987838429,-500.0,0.00024657,2]
[332141069,1720987838438,-510.93095987,0.00024657,2]
[332141070,1720987838446,-500.0,0.00024657,2]
[332141072,1720987838456,-500.0,0.00024657,2]
[332141074,1720987838465,-500.0,0.00024657,2]
[332141076,1720987838474,-500.0,0.00024657,2]
[332141078,1720987838483,-500.0,0.00024657,2]
[332141080,1720987838491,-500.0,0.00024657,2]
[332141082,1720987838500,-500.0,0.00024657,2]
[332141084,1720987838510,-508.43858548,0.00024657,2]
[332141086,1720987838519,-313.33,0.00024657,2]
[332141089,1720987838529,-500.0,0.00024657,2]
[332141091,1720987838539,-217.15990637,0.00024657,2]
[332141093,1720987838550,-500.0,0.00024657,2]
[332141095,1720987838559,-500.0,0.00024657,2]
[332141097,1720987838570,-500.0,0.00024657,2]
[332141099,1720987838579,-500.0,0.00024657,2]
[332141101,1720987838588,-500.0,0.00024657,2]
[332141103,1720987838597,-500.0,0.00024657,2]
[332141105,1720987838606,-500.0,0.00024657,2]
[332141107,1720987838615,-245.7935374,0.00024657,2]
[332141109,1720987838624,-500.0,0.00024657,2]
[332141111,1720987838633,-500.0,0.00024657,2]
[332141113,1720987838642,-500.0,0.00024657,2]
[332141115,1720987838651,-469.03692436,0.00024657,2]
[332141117,1720987838660,-500.0,0.00024657,2]
[332141119,1720987838670,-503.40248263,0.00024657,2]
[332141121,1720987838679,-500.0,0.00024657,2]
[332141123,1720987838690,-500.0,0.00024657,2]
[332141125,1720987838699,-500.0,0.00024657,2]
[332141127,1720987838708,-500.0,0.00024657,2]
[332141129,1720987838718,-500.0,0.00024657,2]
[332141131,1720987838727,-500.0,0.00024657,2]
[332141133,1720987838736,-500.0,0.00024657,2]
[332141135,1720987838745,-500.0,0.00024657,2]
[332141137,1720987838754,-500.0,0.00024657,2]
[332141139,1720987838767,-500.0,0.00024657,2]
[332141142,1720987838776,-500.0,0.00024657,2]
[332141143,1720987838785,-500.0,0.00024657,2]
[332141145,1720987838794,-500.0,0.00024657,2]
[332141147,1720987838803,-490.19246425,0.00024657,2]
[332141150,1720987838813,-500.0,0.00024657,2]
[332141152,1720987838821,-500.0,0.00024657,2]
[332141153,1720987838830,-500.0,0.00024657,2]
[332141155,1720987838839,-500.0,0.00024657,2]
[332141157,1720987838848,-500.0,0.00024657,2]
[332141159,1720987838858,-500.0,0.00024657,2]
[332141161,1720987838867,-568.67,0.00024657,2]
[332141163,1720987838876,-500.0,0.00024657,2]
[332141165,1720987838885,-500.0,0.00024657,2]
[332141167,1720987838894,-500.0,0.00024657,2]
[332141169,1720987838905,-500.0,0.00024657,2]
[332141171,1720987838915,-500.0,0.00024657,2]
[332141173,1720987838924,-500.0,0.00024657,2]
[332141176,1720987838935,-610.71161823,0.00024657,2]
[332141178,1720987838945,-500.0,0.00024657,2]
[332141180,1720987838955,-506.88886871,0.00024657,2]
[332141182,1720987838965,-209.06011589,0.00024657,2]
[332141184,1720987838975,-500.0,0.00024657,2]
[332141186,1720987838987,-500.0,0.00024657,2]
[332141188,1720987838996,-500.0,0.00024657,2]
[332141190,1720987839005,-500.0,0.00024657,2]
[332141192,1720987839014,-500.0,0.00024657,2]
[332141194,1720987839024,-500.0,0.00024657,2]
[332141196,1720987839033,-500.0,0.00024657,2]
[332141198,1720987839043,-500.0,0.00024657,2]
[332141200,1720987839054,-500.0,0.00024657,2]
[332141202,1720987839064,-500.0,0.00024657,2]
[332141205,1720987839075,-500.0,0.00024657,2]
[332141207,1720987839087,-500.0,0.00024657,2]
[332141209,1720987839098,-500.0,0.00024657,2]
[332141211,1720987839109,-500.0,0.00024657,2]
[332141213,1720987839120,-500.0,0.00024657,2]
[332141215,1720987839131,-564.74904182,0.00024657,2]
[332141218,1720987839141,-500.0,0.00024657,2]
[332141220,1720987839152,-500.0,0.00024657,2]
[332141222,1720987839162,-379.39401125,0.00024657,2]
[332141224,1720987839172,-500.0,0.00024657,2]
[332141226,1720987839181,-500.0,0.00024657,2]
[332141228,1720987839190,-505.89779003,0.00024657,2]
[332141230,1720987839200,-500.0,0.00024657,2]
[332141232,1720987839209,-500.0,0.00024657,2]
[332141234,1720987839218,-500.0,0.00024657,2]
[332141236,1720987839229,-504.41137883,0.00024657,2]
[332141238,1720987839238,-500.0,0.00024657,2]
[332141239,1720987839247,-500.0,0.00024657,2]
[332141242,1720987839257,-500.0,0.00024657,2]
[332141244,1720987839267,-531.41,0.00024657,2]
[332141246,1720987839276,-500.0,0.00024657,2]
[332141248,1720987839287,-500.0,0.00024657,2]
[332141250,1720987839299,-500.0,0.00024657,2]
[332141252,1720987839310,-500.0,0.00024657,2]
[332141263,1720987839402,-500.0,0.00024657,2]
[332141265,1720987839412,-500.0,0.00024657,2]
[332141267,1720987839421,-518.95916446,0.00024657,2]
[332141269,1720987839430,-497.47301127,0.00024657,2]
[332141271,1720987839439,-500.0,0.00024657,2]
[332141273,1720987839450,-500.0,0.00024657,2]
[332141276,1720987839459,-500.0,0.00024657,2]
[332141279,1720987839469,-500.0,0.00024657,2]
[332141281,1720987839478,-500.0,0.00024657,2]
[332141283,1720987839487,-500.0,0.00024657,2]
[332141285,1720987839497,-500.0,0.00024657,2]
[332141287,1720987839507,-475.1696104,0.00024657,2]
[332141289,1720987839518,-500.0,0.00024657,2]
[332141291,1720987839528,-500.0,0.00024657,2]
[332141293,1720987839539,-500.0,0.00024657,2]
[332141295,1720987839549,-500.0,0.00024657,2]
[332141299,1720987839560,-500.0,0.00024657,2]
[332141302,1720987839570,-500.0,0.00024657,2]
[332141304,1720987839580,-500.0,0.00024657,2]
[332141306,1720987839590,-500.0,0.00024657,2]
[332141308,1720987839600,-500.0,0.00024657,2]
[332141310,1720987839610,-500.0,0.00024657,2]
[332141312,1720987839620,-500.0,0.00024657,2]
[332141314,1720987839630,-500.0,0.00024657,2]
[332141316,1720987839640,-500.0,0.00024657,2]
[332141318,1720987839649,-500.0,0.00024657,2]
[332141320,1720987839659,-205.40601287,0.00024657,2]
[332141322,1720987839669,-535.248463,0.00024657,2]
[332141324,1720987839680,-500.0,0.00024657,2]
[332141326,1720987839691,-500.0,0.00024657,2]
[332141328,1720987839700,-500.0,0.00024657,2]
[332141331,1720987839711,-500.0,0.00024657,2]
[332141333,1720987839721,-500.0,0.00024657,2]
[332141334,1720987839731,-500.0,0.00024657,2]
[332141335,1720987839741,-500.0,0.00024657,2]
[332141336,1720987839753,-500.0,0.00024657,2]
[332141337,1720987839769,-500.0,0.00024657,2]
[332141338,1720987839778,-501.06308457,0.00024657,2]
[332141339,1720987839788,-500.0,0.00024657,2]
[332141340,1720987839799,-500.0,0.00024657,2]
[332141341,1720987839811,-500.0,0.00024657,2]
[332141342,1720987839821,-516.17923866,0.00024657,2]
[332141343,1720987839833,-500.0,0.00024657,2]
[332141344,1720987839846,-500.0,0.00024657,2]
[332141345,1720987839856,-500.0,0.00024657,2]
[332141346,1720987839866,-500.0,0.00024657,2]
[332141347,1720987839875,-500.0,0.00024657,2]
[332141349,1720987839885,-200.0,0.00024657,2]
[332141351,1720987839894,-500.0,0.00024657,2]
[332141353,1720987839903,-561.02961366,0.00024657,2]
[332141355,1720987839912,-500.0,0.00024657,2]
[332141357,1720987839922,-500.15616576,0.00024657,2]
[332141359,1720987839931,-500.0,0.00024657,2]
[332141361,1720987839940,-500.0,0.00024657,2]
[332141363,1720987839949,-500.19012541,0.00024657,2]
[332141365,1720987839959,-505.04975622,0.00024657,2]
[332141367,1720987839969,-500.0,0.00024657,2]
[332141369,1720987839978,-500.0,0.00024657,2]
[332141371,1720987839988,-500.0,0.00024657,2]
[332141373,1720987839997,-712.24,0.00024657,2]
[332141375,1720987840007,-500.0,0.00024657,2]
[332141377,1720987840017,-500.0,0.00024657,2]
[332141379,1720987840027,-500.0,0.00024657,2]
[332141381,1720987840039,-500.0,0.00024657,2]
[332141383,1720987840048,-404.68639944,0.00024657,2]
[332141385,1720987840058,-500.0,0.00024657,2]
[332141387,1720987840068,-500.0,0.00024657,2]
[332141389,1720987840077,-500.0,0.00024657,2]
[332141391,1720987840087,-500.0,0.00024657,2]
[332141393,1720987840097,-500.0,0.00024657,2]
[332141395,1720987840107,-500.0,0.00024657,2]
[332141397,1720987840116,-500.0,0.00024657,2]
[332141399,1720987840126,-500.0,0.00024657,2]
[332141401,1720987840136,-500.0,0.00024657,2]
[332141403,1720987840146,-500.0,0.00024657,2]
[332141405,1720987840156,-484.16330586,0.00024657,2]
[332141407,1720987840166,-500.0,0.00024657,2]
[332141409,1720987840175,-500.0,0.00024657,2]
[332141411,1720987840184,-500.0,0.00024657,2]
[332141413,1720987840193,-500.0,0.00024657,2]
[332141415,1720987840205,-500.0,0.00024657,2]
[332141417,1720987840215,-1000.0,0.00024657,5]
[332141419,1720987840225,-500.0,0.00024657,2]
[332141421,1720987840235,-500.0,0.00024657,2]
[332141423,1720987840244,-515.5035533,0.00024657,2]
[332141425,1720987840254,-500.0,0.00024657,2]
[332141427,1720987840263,-500.0,0.00024657,2]
[332141429,1720987840272,-500.0,0.00024657,2]
[332141431,1720987840282,-500.0,0.00024657,2]
[332141433,1720987840291,-500.0,0.00024657,2]
[332141435,1720987840300,-500.0,0.00024657,2]
[332141437,1720987840310,-500.0,0.00024657,2]
[332141439,1720987840319,-500.0,0.00024657,2]
[332141441,1720987840329,-500.0,0.00024657,2]
[332141443,1720987840338,-500.0,0.00024657,2]
[332141445,1720987840347,-547.59891513,0.00024657,2]
[332141447,1720987840357,-186.32044497,0.00024657,2]
[332141449,1720987840367,-493.87121565,0.00024657,2]
[332141451,1720987840376,-500.0,0.00024657,2]
[332141453,1720987840386,-500.0,0.00024657,2]
[332141455,1720987840398,-242.40123179,0.00024657,2]
[332141457,1720987840408,-500.0,0.00024657,2]
[332141459,1720987840419,-500.0,0.00024657,2]
[332141461,1720987840429,-500.0,0.00024657,2]
[332141463,1720987840438,-500.0,0.00024657,2]
[332141465,1720987840447,-500.0,0.00024657,2]
[332141467,1720987840457,-500.0,0.00024657,2]
[332141469,1720987840466,-500.0,0.00024657,2]
[332141471,1720987840475,-500.0,0.00024657,2]
[332141473,1720987840485,-500.0,0.00024657,2]
[332141475,1720987840494,-500.0,0.00024657,2]
[332141477,1720987840503,-500.0,0.00024657,2]
[332141479,1720987840512,-504.36600679,0.00024657,2]
[332141481,1720987840521,-500.0,0.00024657,2]
[332141483,1720987840530,-500.0,0.00024657,2]
[332141485,1720987840539,-500.0,0.00024657,2]
[332141487,1720987840548,-500.0,0.00024657,2]
[332141489,1720987840558,-500.0,0.00024657,2]
[332141491,1720987840567,-500.0,0.00024657,2]
[332141493,1720987840577,-500.0,0.00024657,2]
[332141495,1720987840586,-500.0,0.00024657,2]
[332141497,1720987840595,-500.0,0.00024657,2]
[332141499,1720987840605,-500.0,0.00024657,2]
[332141501,1720987840614,-500.0,0.00024657,2]
[332141503,1720987840623,-500.0,0.00024657,2]
[332141505,1720987840633,-500.0,0.00024657,2]
[332141507,1720987840642,-500.0,0.00024657,2]
[332141509,1720987840651,-500.0,0.00024657,2]
[332141511,1720987840661,-500.0,0.00024657,2]
[332141513,1720987840670,-500.0,0.00024657,2]
[332141515,1720987840679,-500.0,0.00024657,2]
[332141517,1720987840688,-500.0,0.00024657,2]
[332141519,1720987840697,-500.0,0.00024657,2]
[332141521,1720987840706,-500.0,0.00024657,2]
[332141523,1720987840715,-500.0,0.00024657,2]
[332141525,1720987840724,-500.0,0.00024657,2]
[332141527,1720987840733,-500.0,0.00024657,2]
[332141528,1720987840743,-500.0,0.00024657,2]
[332141530,1720987840752,-500.0,0.00024657,2]
[332141532,1720987840765,-516.62501992,0.00024657,2]
[332141534,1720987840774,-500.0,0.00024657,2]
[332141536,1720987840783,-500.0,0.00024657,2]
[332141538,1720987840793,-500.0,0.00024657,2]
[332141540,1720987840802,-500.0,0.00024657,2]
[332141542,1720987840811,-500.0,0.00024657,2]
[332141544,1720987840820,-500.0,0.00024657,2]
[332141546,1720987840830,-500.0,0.00024657,2]
[332141548,1720987840840,-500.0,0.00024657,2]
[332141550,1720987840850,-500.0,0.00024657,2]
[332141552,1720987840859,-508.54615723,0.00024657,2]
[332141554,1720987840868,-500.0,0.00024657,2]
[332141556,1720987840878,-500.0,0.00024657,2]
[332141558,1720987840887,-500.0,0.00024657,2]
[332141560,1720987840896,-500.0,0.00024657,2]
[332141562,1720987840906,-500.0,0.00024657,2]
[332141564,1720987840915,-500.0,0.00024657,2]
[332141566,1720987840924,-500.0,0.00024657,2]
[332141568,1720987840934,-500.0,0.00024657,2]
[332141570,1720987840943,-500.0,0.00024657,2]
[332141572,1720987840953,-500.0,0.00024657,2]
[332141574,1720987840962,-500.0,0.00024657,2]
[332141576,1720987840971,-500.0,0.00024657,2]
[332141578,1720987840981,-500.0,0.00024657,2]
[332141580,1720987840991,-500.0,0.00024657,2]
[332141582,1720987841000,-500.0,0.00024657,2]
[332141584,1720987841010,-500.0,0.00024657,2]
[332141586,1720987841020,-500.0,0.00024657,2]